Workbook

Sheet Introduction
B3: KSU-Cover Crop Cost-Return Budget
B5: An Excel spreadsheet to analyze the economics of planting a cover crop based on short-run benefits.
L8: Version- 8.10.16
B28: INTRODUCTION
B29: The default values in this tool are based on a cereal rye and turnip cover crop mix planted in southeastern Kansas The tool, however, can be used to look at the economics of planting any cover crop by changing the inputs in blue. Note that long-term benefits (soil health, decreased runoff, etc) are not captured in this budget because the budget is based on one year's time and these are difficult to monetarily capture. The authors do recognize the importance of these benefits and promote the use of cover crops for these purposes.
B31: INSTRUCTIONS FOR THE USER:
B32: Be sure to "Enable Content" and "Enable Macros" for the spreadsheet to function correctly. This spreadsheet uses macros to print , however printing can also be done manually by highlighting the desired range and using the menu print commands.
B34: All blue numbers are inputs and all black numbers are calculated from these inputs. Several cells have a red diamond in the upper right hand corner of the cell. By moving your mouse cursor over this diamond, more detail of the input will be displayed on the screen.
B36: FOR MORE INFORMATION:
B37: Deveolepd by:
B39: Robin Reid | E39: Mykel Taylor | H39: Doug Shoup | L39: Jaymelynn Farney
B40: Extension Associate | E40: Agricultural Economist | H40: Agronomy Specialist, SE | L40: Beef Systems Specialist, SE
B41: Kansas State University | E41: Kansas State University | H41: Kansas State University | L41: Kansas State University
B42: robinreid@ksu.edu | E42: mtaylor@k-state.edu | H42: dshoup@ksu.edu | L42: jkj@ksu.edu
B43: 785-532-0964 | E43: 785-532-3033 | H43: 620-421-4826 | L43: 620-421-4826
B46: Copyright 2016 AgManager.info, K-State Department of Agricultural Economics

Sheet Cover Crop Tool
J1: Supplement Tables with more detail:
A2: Cover Crop Cost-Return Budget | J2: TABLE 1. Production Inputs
A3: Cereal Rye & Turnip in Southeastern Kansas | J3: Item | L3: Price | O3: Rate | Q3: Total
A4: Department of Agricultural Economics - www.AgManager.info | J4: Seed, lbs
A5: Robin Reid & Mykel Taylor | C5: Doug Shoup | F5: Jaymelynn Farney | J5: Rye | L5: 0.24 | M5: /lb x | N5: 100 | O5: lbs/acre | P5: =L5*N5 -> 24 | Q5: =SUM(P5:P7) -> 33
A6: Agricultural Economics | C6: Agronomy Specialist, SE | F6: Beef Systems Specialist, SE | J6: Turnip | L6: 3 | M6: /lb x | N6: 3 | O6: lbs/acre | P6: =L6*N6 -> 9
J7: Other | L7: 0 | M7: /lb x | N7: 0 | O7: lbs/acre | P7: =L7*N7 -> 0
A8: INCOME PER ACRE | C8: Yield Level, tons/ac | G8: Your Farm
A9: A. Yield per acre | C9: 1 | D9: 1.75 | E9: 2.5 | J9: Herbicide chemicals
A10: B. Net Grazing Income | C10: =M58-L67 -> 56.52173913 | D10: =N58-L67 -> 84.25925926 | E10: =O58-L67 -> 120.3703704 | J10: Burndown/Termination | P10: 0 | Q10: =SUM(P10:P10) -> 0
A11: D. Government Payment | C11: 0 | D11: 0 | E11: 0
A12: E. Miscellaneous income | C12: 0 | D12: 0 | E12: 0 | N12: Yield Level (tons)
A13: F. Returns/acre (B+D+E) | C13: =SUM(C10:C12) -> 56.52173913 | D13: =SUM(D10:D12) -> 84.25925926 | E13: =SUM(E10:E12) -> 120.3703704 | G13: =IF(G9="","",(G10+G11+G12)) ->  | J13: Fertilizer: | N13: =C9 -> 1 | O13: =D9 -> 1.75 | P13: =E9 -> 2.5
J14: N | L14: 0.56 | M14: /lb x | N14: 0 | O14: 40 | P14: 80 | Q14: lbs/acre
A15: COSTS PER ACRE | J15: P | L15: 0.68 | M15: /lb x | N15: 0 | O15: 0 | P15: 0 | Q15: lbs/acre
A16: 1. Seed | C16: =$Q$5 -> 33 | D16: =$Q$5 -> 33 | E16: =$Q$5 -> 33 | J16: K | L16: 0.4 | M16: /lb x | N16: 0 | O16: 0 | P16: 0 | Q16: lbs/acre
A17: 2. Herbicide | C17: =$Q$10 -> 0 | D17: =$Q$10 -> 0 | E17: =$Q$10 -> 0
A18: 3. Insecticide / Fungicide | C18: 0 | D18: 0 | E18: 0 | J18: Irrigation Water
A19: 4. Fertilizer | C19: =SUMPRODUCT(N14:N16,$L$14:$L$16) -> 0 | D19: =SUMPRODUCT(O14:O16,$L$14:$L$16) -> 22.4 | E19: =SUMPRODUCT(P14:P16,$L$14:$L$16) -> 44.8 | K19: Fuel and Oil | L19: 0 | M19: /inch x | N19: 0 | O19: 0 | P19: 0 | Q19: in/acre
A20: 8. Miscellaneous | C20: 0 | D20: 0 | E20: 0 | K20: Repairs and Maint. | L20: 0 | M20: /inch x
A21: 9. Machinery Expense | C21: =SUMPRODUCT(L26:L39,P26:P39) -> 19.77 | D21: =SUMPRODUCT(M26:M39,P26:P39) -> 25.96 | E21: =SUMPRODUCT(N26:N39,P26:P39) -> 25.96
A22: 10. Non-machinery Labor | C22: =L41*$P$41 -> 7.5 | D22: =M41*$P$41 -> 7.5 | E22: =N41*$P$41 -> 7.5 | J22: TABLE 2. Machinery & Equipment
A23: 11. Irrigation | L23: Yield Level (tons) | P23: Custom
A24: a. Labor | C24: =L42*P42 -> 0 | D24: =M42*P42 -> 0 | E24: =N42*P42 -> 0 | J24: ITEM | L24: =C9 -> 1 | M24: =D9 -> 1.75 | N24: =E9 -> 2.5 | P24: Rate
A25: b. Fuel and Oil | C25: =$L$19*N19 -> 0 | D25: =$L$19*O19 -> 0 | E25: =$L$19*P19 -> 0 | J25: Tillage/Planting/Chemical Applications:
A26: c. Repairs and Maintenance | C26: =$L$20*N19 -> 0 | D26: =$L$20*O19 -> 0 | E26: =$L$20*P19 -> 0 | J26: Harrow | L26: 0 | M26: =L26 -> 0 | N26: =L26 -> 0 | P26: 9.7 | Q26: /ac
A27: d. Depreciation on Equipment / Well | C27: =IF(SUM(L48:L50)=0,0,(L48*(1-O48)/N48+L49*(1-O49)/N49+L50*(1-O50)/N50)*Q49) -> 0 | D27: =C27 -> 0 | E27: =C27 -> 0 | J27: Disk | L27: 0 | M27: =L27 -> 0 | N27: =L27 -> 0 | P27: 11.97 | Q27: /ac
A28: e. Interest on Equipment | C28: =IF(SUM(L48:L50)=0,0,((L48*(1+O48)/2+L49*(1+O49)/2+L50*(1+O50)/2)*P45)*Q49) -> 0 | D28: =C28 -> 0 | E28: =C28 -> 0 | J28: Roller | L28: 0 | M28: =L28 -> 0 | N28: =L28 -> 0 | P28: 12 | Q28: /ac
A29: 12. Land Charge / Rent | C29: =P44 -> 0 | D29: =P44 -> 0 | E29: =P44 -> 0 | J29: Field cultivate | L29: 0 | M29: 0 | N29: 0 | P29: 11.11 | Q29: /ac
A30: G. SUB TOTAL | C30: =SUM(C16:C29) -> 60.27 | D30: =SUM(D16:D29) -> 88.86 | E30: =SUM(E16:E29) -> 111.26 | G30: =IF(SUM(G16:G29)>0,SUM(G16:G29),"") ->  | J30: Drill | L30: 1 | M30: 1 | N30: 1 | P30: 19.77 | Q30: /ac
A31: 13. Interest on 1/2 Nonland Costs | C31: =(C30-C27-C28-C29)/2*P45 -> 1.50675 | D31: =(D30-D27-D28-D29)/2*P45 -> 2.2215 | E31: =(E30-E27-E28-E29)/2*P45 -> 2.7815 | G31: =IF(SUM(G16:G29)>0,(G30-G27-G28-G29)/2*P45,"") ->  | J31: Broadcast | L31: 0 | M31: 0 | N31: 0 | P31: 15 | Q31: /ac
A32: H. TOTAL COSTS | C32: =C30+C31 -> 61.77675 | D32: =D30+D31 -> 91.0815 | E32: =E30+E31 -> 114.0415 | G32: =IF(G9>0,G30+G31,"") ->  | J32: Anhydrous application | L32: 0 | M32: 0 | N32: 0 | P32: 14.52 | Q32: /ac
A33: I. RETURNS OVER COSTS (F - H) | C33: =C13-C32 -> -5.25501087 | D33: =D13-D32 -> -6.822240741 | E33: =E13-E32 -> 6.32887037 | G33: =IF(G9>0,G13-G32,"") ->  | J33: Fertilizer application | L33: 0 | M33: 1 | N33: 1 | P33: 6.19 | Q33: /ac
A34: J. TOTAL COSTS/TON (H/A) | C34: =C32/C9 -> 61.77675 | D34: =D32/D9 -> 52.04657143 | E34: =E32/E9 -> 45.6166 | G34: =IF(G9>0,G32/G9,"") ->  | J34: Herbicide application | L34: 0 | M34: 0 | N34: 0 | P34: 6.26 | Q34: /ac
A35: K. RETURN TO ANNUAL COST (I+13)/G | C35: =(C33+C31)/C30 -> -0.0621911543 | D35: =(D33+D31)/D30 -> -0.05177516026 | E35: =(E33+E31)/E30 -> 0.0818836093 | G35: =IF(G9>0,(G33+G31)/G30,"") ->  | J35: Insecticide / fungicide application | L35: 0 | M35: =L35 -> 0 | N35: =L35 -> 0 | P35: 6.29 | Q35: /ac
J36: Harvest
J37: Swathing and conditioning | L37: 0 | M37: =L37 -> 0 | N37: =L37 -> 0 | P37: 17.46 | Q37: /ac
J38: Sideraking | L38: 0 | M38: =L38 -> 0 | N38: =L38 -> 0 | P38: 4.2 | Q38: /ac
J39: Baling | L39: 0 | M39: 0 | N39: 0 | P39: 13.16 | Q39: /bale
J41: Non-machinery labor | L41: 0.5 | M41: 0.5 | N41: 0.5 | P41: 15 | Q41: /hr
J42: Irrigation labor | L42: 0 | M42: 0 | N42: 0 | P42: 15 | Q42: /hr
J44: Land charge/rent | P44: 0 | Q44: /ac
J45: Interest on capital | P45: 0.05
J47: Irrigation Equipment | L47: Investment, $/ac | N47: Years | O47: Salvage value | Q47: % to charge to cover crops
J48: Well, pump and gearhead value | L48: n/a | N48: n/a | O48: n/a
J49: Power unit and meter | L49: n/a | N49: n/a | O49: n/a | Q49: 0
J50: Irrigation system | L50: n/a | N50: n/a | O50: n/a
J52: TABLE 3. Grazing Income
M53: Yield Level (tons)
J54: Stocking Rate & Charge | M54: =C9 -> 1 | N54: =D9 -> 1.75 | O54: =E9 -> 2.5
J55: 0.75 | K55: per/hd/day
M56: =((M54*2000)*0.65)/(0.03*575) -> 75.36231884 | N56: 75 | O56: 75 | P56: grazing days
M57: 1 | N57: =((N54*2000)*0.65)/(N56*20.25) -> 1.497942387 | O57: =((O54*2000)*0.65)/(O56*20.25) -> 2.139917695 | P57: head/acre
M58: =$J$55*M56*M57 -> 56.52173913 | N58: =$J$55*N56*N57 -> 84.25925926 | O58: =$J$55*O56*O57 -> 120.3703704 | P58: Total per acre
J60: Costs | L60: per acre
J61: Fencing | L61: 0
J62: Water | L62: 0
J63: Supplement | L63: 0
J64: Mineral | L64: 0
J65: Labor | L65: 0
J67: Total | L67: =SUM(L61:L65) -> 0
